bitfinex-derivatives/quotes_SOLF0:USTF0_20241218
["timestamp","ask_amount","ask_price","bid_price","bid_amount"]
[1734536885327,2.46,217.07,216.96,2.46]
[1734536886128,2.46,217.07,216.97,11.21748646]
[1734536886630,2.46,217.07,217.03,2.3043]
[1734536886833,2.304,217.06,216.97,11.21748646]
[1734536887230,2.304,217.06,217.02,2.3044]
[1734536887831,2.46,217.07,216.97,11.21748646]
[1734536889526,23.0468,217.29,217.01,11.21748646]
[1734536889731,2.46,217.15,217.04,11.21748646]
[1734536890234,11.21748646,217.18,217.04,11.21748646]
[1734536890431,2.46,217.17,217.07,11.21748646]
[1734536891432,2.46,217.17,217.14,2.3031]
[1734536891830,2.46,217.17,217.07,11.21748646]
[1734536892129,2.46,217.17,217.02,7.0676]
[1734536892130,2.46,217.17,217.04,2.38]
[1734536892329,2.46,217.17,217.02,4.6076]
[1734536892633,17.93476218,217.13,216.98,25.10687825]
[1734536892831,2.38,217.12,216.98,25.10687825]
[1734536893033,2.3042,217.05,217.0,2.3046]
[1734536893226,2.38,217.04,217.0,2.3046]
[1734536893430,4.6843,217.04,216.99,2.3048]
[1734536894131,2.3044,217.03,216.98,2.3049]
[1734536894531,2.38,217.04,216.91,17.93476218]
[1734536895135,2.3046,217.01,216.92,2.3054]
[1734536895334,2.3046,217.01,216.88,1.5525]
[1734536895632,2.38,217.04,216.88,1.5525]
[1734536895833,2.3048,217.0,216.92,2.3054]
[1734536896034,2.38,216.99,216.88,1.5525]
[1734536896227,2.38,216.98,216.88,1.5525]
[1734536896426,2.38,216.98,216.89,5.62094421]
[1734536896836,2.38,216.98,216.93,2.3054]
[1734536897432,5.41723065,217.07,216.96,2.3051]
[1734536897633,2.38,217.06,216.91,17.93476218]
[1734536897827,2.38,217.06,216.91,20.31476218]
[1734536898134,2.3042,217.05,216.91,20.31476218]
[1734536898636,2.3042,217.05,216.99,2.3048]
[1734536898937,2.3042,217.05,216.91,20.31476218]
[1734536899136,2.3042,217.05,216.95,2.3052]
[1734536899337,2.3043,217.04,216.91,20.31476218]
[1734536900136,2.3043,217.04,216.99,2.3048]
[1734536900333,2.3042,217.05,216.99,2.3048]
[1734536900532,55.733,217.11,216.91,20.31476218]
[1734536900533,2.38,217.04,216.91,20.31476218]
[1734536900728,2.38,217.05,217.03,2.3044]
[1734536901740,2.38,217.05,216.97,1.5806]
[1734536902237,2.38,217.05,217.0,2.3047]
[1734536902838,2.3043,217.04,217.0,2.3047]
[1734536903240,2.38,217.05,217.0,2.3047]
[1734536904339,4.6842,217.05,217.0,2.3047]
[1734536904736,2.3045,217.02,216.92,3.9606]
[1734536904937,2.3045,217.02,216.92,1.5806]
[1734536905142,2.38,217.05,216.92,1.5806]
[1734536905342,2.3046,217.01,216.92,1.5806]
[1734536905641,2.38,217.0,216.92,1.5806]
[1734536906640,17.93476218,216.98,216.81,6.27671956]
[1734536907039,17.93476218,216.94,216.81,6.27671956]
[1734536907235,17.93476218,216.94,216.78,2.9996]
[1734536907236,2.3057,216.91,216.86,2.3061]
[1734536908242,2.38,216.93,216.82,5.46820825]
[1734536909946,2.38,216.92,216.91,2.3056]
[1734536910147,2.38,216.93,216.85,17.93476218]
[1734536910340,2.38,216.95,216.85,17.93476218]
[1734536910645,2.9926,216.99,216.85,17.93476218]
[1734536910843,2.38,216.95,216.85,17.93476218]
[1734536911542,2.38,216.95,216.92,2.3054]
[1734536911739,17.93476218,217.03,216.85,20.31476218]
[1734536912045,2.38,217.03,216.93,2.3054]
[1734536912245,2.38,217.03,216.91,2.38]
[1734536912642,2.38,217.03,217.0,2.3046]
[1734536912844,1.5599,217.08,216.93,17.93476218]
[1734536913143,1.5599,217.08,217.03,2.3043]
[1734536913348,2.38,217.07,217.03,2.3043]
[1734536913852,2.38,217.07,217.04,2.3042]
[1734536914148,2.38,217.07,216.96,2.38]
[1734536914343,2.38,217.07,216.97,1.4572]
[1734536915347,17.93476218,217.03,216.81,131.9226795]
[1734536915548,2.38,217.02,216.88,3.1041]
[1734536915747,2.3047,217.01,216.88,3.1041]
[1734536915950,2.38,217.02,216.88,3.1041]
[1734536916142,17.93476218,217.03,216.88,3.1041]
[1734536916346,2.3049,216.98,216.88,3.1041]
[1734536916547,2.38,216.97,216.88,3.1041]
[1734536916948,4.6851,216.97,216.9,2.3056]
[1734536917148,4.6851,216.97,216.88,3.1041]
[1734536918052,4.6851,216.97,216.91,2.3056]
[1734536918252,2.38,216.97,216.88,3.1041]
[1734536918649,2.38,216.97,216.95,2.3052]
[1734536918953,2.38,216.97,216.88,3.1041]
[1734536919352,2.38,216.97,216.96,2.3051]
[1734536921154,2.38,216.97,216.88,3.1041]
[1734536921960,1.6011,217.05,216.88,3.1041]
[1734536922159,3.9052,217.05,217.0,2.3047]
[1734536922358,2.38,217.04,216.89,20.31476218]
[1734536922657,2.38,217.04,216.89,17.93476218]
[1734536922852,2.38,217.04,216.88,5.4841]
[1734536922853,17.93476218,217.03,216.88,3.1041]
[1734536923658,2.3049,216.98,216.92,2.3055]
[1734536923853,2.38,216.97,216.92,2.3055]
[1734536924158,2.38,216.97,216.88,3.1041]
[1734536924558,2.38,216.97,216.95,2.3051]
[1734536924960,2.38,216.97,216.88,3.1041]
[1734536925653,2.38,216.97,216.92,2.3054]
[1734536926460,2.38,216.97,216.88,3.1041]
[1734536927365,4.685,216.97,216.91,2.3055]
[1734536929068,4.685,216.97,216.88,3.1041]
[1734536929267,4.685,216.97,216.92,2.3055]
[1734536930068,2.38,216.97,216.96,2.3051]
[1734536930964,2.38,217.01,216.98,2.3048]
[1734536931565,2.38,217.01,216.9,2.38]
[1734536931868,2.38,217.01,216.88,3.1041]
[1734536932070,2.38,217.01,216.91,2.3055]
[1734536932868,2.3051,216.97,216.92,2.3055]
[1734536933068,2.38,216.96,216.92,2.3055]
[1734536934465,2.3044,217.03,216.89,17.93476218]
[1734536934872,2.38,217.02,216.89,17.93476218]
[1734536935268,2.38,217.02,216.97,2.3049]
[1734536935571,4.6845,217.02,216.97,2.3049]
[1734536935875,2.38,217.02,216.98,2.3049]
[1734536936075,17.93476218,217.11,216.93,17.93476218]
[1734536936264,2.38,217.1,216.94,1.5106]
[1734536936467,2.38,217.1,217.05,2.3041]
[1734536937472,4.6836,217.1,217.05,2.3041]
[1734536938176,2.38,217.1,216.94,1.5106]
[1734536938470,2.38,217.1,217.04,2.3042]
[1734536938666,2.38,217.1,216.94,6.96613574]
[1734536938873,2.3038,217.09,217.04,2.3042]
[1734536939173,2.3038,217.09,216.94,6.96613574]
[1734536939675,2.38,217.1,217.03,2.3043]
[1734536939676,2.3039,217.08,217.03,2.3043]
[1734536940072,2.38,217.1,217.04,2.3042]
[1734536940369,2.38,217.1,216.94,6.96613574]
[1734536940566,17.93476218,217.15,217.09,2.3037]
[1734536940767,2.38,217.14,217.0,2.38]
[1734536940974,1.5072,217.24,217.05,17.93476218]
[1734536941168,2.38,217.23,217.16,2.3029]
[1734536941372,2.38,217.23,217.06,3.8307]
[1734536941572,4.6823,217.23,217.06,3.8307]
[1734536941772,2.38,217.23,217.17,2.3028]
[1734536941972,2.38,217.23,217.06,3.8307]
[1734536943067,2.38,217.23,217.16,2.303]
[1734536943269,2.38,217.23,217.07,5.48116658]
[1734536943475,2.38,217.23,217.09,17.93476218]
[1734536943975,2.38,217.23,217.1,1.5995]
[1734536944177,2.38,217.3,217.13,17.93476218]
[1734536944372,2.38,217.3,217.11,2.38]
[1734536944373,2.38,217.3,217.1,1.5995]
[1734536944569,2.3019,217.27,217.21,2.3024]
[1734536944769,7.8960045,217.32,217.16,20.31476218]
[1734536945073,2.38,217.32,217.21,2.3024]
[1734536945274,21.02476218,217.37,217.17,3.8542]
[1734536945275,21.02476218,217.37,217.22,2.38]
[1734536945477,2.38,217.36,217.23,3.0948]
[1734536946073,21.02476218,217.37,217.23,3.0948]
[1734536946270,2.3011,217.34,217.26,2.3018]
[1734536946474,2.38,217.33,217.23,3.0948]
[1734536946880,2.3013,217.32,217.25,2.302]
[1734536947178,20.31476218,217.33,217.17,3.8542]
[1734536947481,1.4905,217.31,217.15,3.0785]
[1734536947782,17.93476218,217.29,217.15,3.0785]
[1734536948073,2.38,217.28,217.12,2.38]
[1734536948279,2.38,217.28,217.14,5.41955437]
[1734536948468,4.6818,217.28,217.2,2.3025]
[1734536948671,2.38,217.28,217.2,2.3025]
[1734536950079,2.3019,217.26,217.2,2.3025]
[1734536950680,2.3023,217.23,217.14,5.41955437]
[1734536950976,2.38,217.23,217.11,3.0785]
[1734536951173,2.38,217.23,217.06,19.43626218]
[1734536951376,17.93476218,217.21,217.05,2.38]
[1734536951677,17.93476218,217.21,217.04,1.6004]
[1734536951879,2.38,217.23,217.04,1.6004]
[1734536952380,2.3028,217.19,217.04,1.6004]
[1734536952677,2.38,217.18,217.05,2.38]
[1734536952878,2.38,217.17,217.05,2.38]
[1734536953078,2.38,217.16,217.05,2.38]
[1734536953378,2.38,217.16,217.07,5.62874427]
[1734536953579,2.38,217.16,217.04,1.6004]
[1734536953775,2.3033,217.13,217.07,2.3039]
[1734536954277,17.93476218,217.15,216.97,1.4656]
[1734536954479,2.3038,217.08,217.0,5.57398887]
[1734536954781,2.38,217.07,216.97,2.9391]
[1734536954977,2.38,217.1,217.0,17.93476218]
[1734536955173,2.38,217.1,217.0,20.31476218]
[1734536956080,2.38,217.1,217.09,2.3037]
[1734536956482,2.38,217.1,217.0,20.31476218]
[1734536956978,2.38,217.1,217.09,2.3037]
[1734536957381,2.38,217.1,216.99,5.64383865]
[1734536958080,2.38,217.1,217.01,17.93476218]
[1734536958281,2.38,217.14,217.01,20.31476218]
[1734536960285,2.38,217.14,217.07,2.3038]
[1734536960484,2.38,217.14,217.01,20.31476218]
[1734536961076,2.38,217.14,217.02,2.38]
[1734536962078,2.3034,217.12,217.01,17.93476218]
[1734536962687,2.3035,217.11,217.01,17.93476218]
[1734536962981,1.464,217.13,217.01,17.93476218]
[1734536963381,1.464,217.13,217.02,2.38]
[1734536963783,1.464,217.13,217.07,2.3039]
[1734536963984,1.464,217.13,217.02,2.38]
[1734536964386,3.7673,217.13,217.07,2.3038]
[1734536964991,1.464,217.13,217.08,2.3037]
[1734536965187,1.464,217.13,217.02,2.38]
[1734536965988,1.464,217.13,217.04,11.21122221]
[1734536966190,1.464,217.13,217.09,2.3037]
[1734536966584,2.38,217.16,217.12,2.3034]
[1734536966991,2.38,217.16,217.07,11.21122221]
[1734536967393,2.38,217.16,217.13,2.3033]
[1734536968095,2.38,217.17,217.14,2.3031]
[1734536968893,11.21122221,217.21,217.08,1.5832]
[1734536969094,11.21122221,217.18,217.08,1.5832]
[1734536970383,2.303,217.17,217.12,2.3034]
[1734536971190,2.303,217.17,217.13,2.3033]
[1734536971394,2.38,217.2,217.13,2.3033]
[1734536971587,11.21122221,217.21,217.08,1.5832]
[1734536971788,1.4523,217.24,217.1,11.21122221]
[1734536971789,12.66352221,217.24,217.1,11.21122221]
[1734536971988,2.38,217.23,217.1,11.21122221]
[1734536972295,11.21122221,217.27,217.22,2.3023]
[1734536972489,2.38,217.25,217.22,2.3023]
[1734536972887,2.38,217.25,217.16,11.21122221]
[1734536973391,2.38,217.27,217.25,2.302]
[1734536973587,2.38,217.27,217.19,11.21122221]
[1734536973990,2.38,217.27,217.26,2.3019]
[1734536974991,4.6906,217.32,217.22,11.21122221]
[1734536974992,1.5773,217.32,217.22,11.21122221]
[1734536975195,2.38,217.33,217.3,2.3015]
[1734536975398,2.38,217.34,217.25,11.21122221]
[1734536975692,2.38,217.34,217.27,2.3017]
[1734536975996,2.38,217.34,217.25,11.21122221]
[1734536976191,52.7,217.39,217.33,2.3011]
[1734536976496,2.38,217.38,217.33,2.3011]
[1734536976692,2.38,217.38,217.28,17.89369021]
[1734536977591,1.4861,217.42,217.28,17.89369021]
[1734536977897,2.38,217.41,217.37,2.3007]
[1734536978091,17.89369021,217.51,217.36,17.89369021]
[1734536978291,2.38,217.5,217.36,17.89369021]
[1734536978498,2.38,217.5,217.45,2.2999]
[1734536978696,2.38,217.5,217.37,1.5674]
[1734536978892,2.38,217.5,217.38,1.4868]
[1734536979490,3.8739,217.51,217.44,2.2999]
[1734536979699,3.9546,217.51,217.4,2.38]
[1734536980298,1.5746,217.51,217.4,2.38]
[1734536980500,2.38,217.5,217.4,2.38]
[1734536980699,2.38,217.5,217.37,1.5674]
[1734536981400,2.2998,217.46,217.37,1.5674]
[1734536981699,2.38,217.45,217.37,1.5674]
[1734536982201,2.38,217.45,217.33,3.859]
[1734536982601,2.3,217.44,217.37,2.3006]
[1734536982802,2.38,217.45,217.33,3.859]
[1734536983295,4.6799,217.45,217.37,2.3007]
[1734536983493,2.38,217.45,217.33,1.479]
[1734536984204,17.89369021,217.43,217.28,17.89369021]
[1734536984604,1.4995,217.42,217.28,17.89369021]
[1734536985504,3.7911,217.44,217.28,17.89369021]
[1734536985708,1.491,217.44,217.29,5.58827329]
[1734536986505,2.3001,217.43,217.29,5.58827329]
[1734536986706,1.491,217.44,217.29,5.58827329]
[1734536986907,2.38,217.45,217.4,2.3004]
[1734536987201,1.4995,217.5,217.36,17.89369021]
[1734536987402,2.42,217.5,217.37,3.0447]
[1734536987609,2.42,217.5,217.38,2.42]
[1734536988198,2.42,217.5,217.4,17.89369021]
[1734536988403,2.42,217.5,217.45,2.2999]
[1734536988704,2.2995,217.49,217.4,17.89369021]
[1734536989001,2.42,217.5,217.4,17.89369021]
[1734536989198,2.42,217.5,217.43,2.3001]
[1734536989396,2.42,217.5,217.4,17.89369021]
[1734536990806,2.42,217.5,217.47,2.2996]
[1734536991004,2.42,217.5,217.4,17.89369021]
[1734536991206,17.89369021,217.59,217.4,17.89369021]
[1734536991400,1.4448,217.61,217.44,17.89369021]
[1734536991597,6.85158324,217.61,217.45,2.42]
[1734536991797,4.7183,217.6,217.45,2.42]
[1734536991998,4.7183,217.6,217.46,1.4922]
[1734536992507,4.7183,217.6,217.53,2.299]
[1734536993002,2.2984,217.59,217.53,2.299]
[1734536994704,2.2987,217.57,217.51,2.2992]
[1734536994909,2.42,217.6,217.47,1.5152]
[1734536995309,2.42,217.6,217.51,2.2992]
[1734536995310,2.2986,217.57,217.51,2.2992]
[1734536996010,2.42,217.6,217.47,1.5152]
[1734536996204,2.42,217.6,217.54,2.2989]
[1734536996404,2.42,217.6,217.47,1.5152]
[1734536997508,2.42,217.6,217.48,17.89369021]
[1734536997712,2.42,217.6,217.54,2.2988]
[1734536997907,4.7183,217.6,217.54,2.2988]
[1734536998307,2.2984,217.59,217.54,2.2988]
[1734536999406,2.42,217.6,217.52,2.2991]
[1734536999611,2.42,217.6,217.47,1.5152]
[1734536999808,2.2985,217.58,217.5,2.2993]
[1734537000112,2.2985,217.58,217.47,1.5152]
[1734537000911,20.31369021,217.6,217.44,23.37466661]
[1734537001110,1.4909,217.57,217.47,2.2997]
[1734537001310,17.89369021,217.56,217.4,17.89369021]
[1734537001514,2.42,217.55,217.45,2.2999]
[1734537002012,1.5152,217.54,217.43,2.3]
[1734537002306,1.5152,217.54,217.38,3.147]
[1734537002506,2.2996,217.48,217.38,3.147]
[1734537002702,2.42,217.49,217.38,3.147]
[1734537002907,2.2997,217.47,217.38,3.147]
[1734537003107,2.42,217.48,217.38,3.147]
[1734537003302,2.42,217.48,217.45,2.2999]
[1734537003504,1.5152,217.54,217.4,17.89369021]
[1734537003711,2.42,217.54,217.44,17.89369021]
[1734537004017,2.42,217.6,217.48,17.89369021]
[1734537004508,2.2984,217.59,217.48,17.89369021]
[1734537004909,2.42,217.6,217.52,2.2991]
[1734537005116,2.2985,217.59,217.48,17.89369021]
[1734537005914,4.7183,217.61,217.48,17.89369021]
[1734537006215,4.7183,217.61,217.49,2.9422]
[1734537006415,4.7183,217.61,217.5,2.42]
[1734537006609,17.89369021,217.68,217.5,2.42]
[1734537006806,2.42,217.63,217.5,2.42]
[1734537007005,2.42,217.62,217.5,2.42]
[1734537007307,2.42,217.61,217.49,6.9043]
[1734537007511,2.42,217.6,217.49,6.9043]
[1734537008115,2.42,217.6,217.49,2.9422]
[1734537008311,2.42,217.6,217.39,10.16944706]
[1734537008312,17.89369021,217.56,217.39,5.56844706]
[1734537008618,17.89369021,217.52,217.38,6.27671956]
[1734537008818,17.89369021,217.52,217.39,6.27671956]
[1734537009619,17.89369021,217.52,217.37,5.60079685]
[1734537009620,2.42,217.51,217.37,5.60079685]
[1734537010013,17.89369021,217.52,217.37,5.60079685]
[1734537010315,2.42,217.51,217.37,5.60079685]
[1734537010616,2.42,217.51,217.37,8.02079685]
[1734537011019,2.2995,217.5,217.37,8.02079685]
[1734537011212,2.2995,217.5,217.37,25.91448706]
[1734537011415,2.42,217.49,217.37,25.91448706]
[1734537011909,2.2997,217.47,217.37,8.02079685]
[1734537012315,2.42,217.49,217.37,8.02079685]
[1734537012617,2.42,217.48,217.37,8.02079685]
[1734537013118,2.42,217.49,217.37,8.02079685]
[1734537013508,4.7195,217.49,217.37,8.02079685]
[1734537013714,2.42,217.49,217.37,8.02079685]
[1734537014020,2.2999,217.45,217.38,2.3005]
[1734537014222,2.42,217.44,217.37,5.60079685]
[1734537014417,2.42,217.44,217.39,2.3005]
[1734537014615,2.42,217.44,217.34,2.9596]
[1734537015118,2.42,217.47,217.34,2.9596]
[1734537015512,2.42,217.48,217.44,2.3]
[1734537016413,2.2994,217.5,217.44,2.3]
[1734537016618,2.42,217.5,217.45,2.2999]
[1734537016821,2.42,217.5,217.37,2.42]
[1734537017018,2.2995,217.49,217.37,2.42]
[1734537017213,2.42,217.5,217.44,2.3]
[1734537017418,1.5078,217.55,217.37,20.31369021]
[1734537017617,2.42,217.54,217.48,2.2996]
[1734537017820,2.42,217.54,217.37,20.31369021]
[1734537018022,2.2992,217.53,217.37,20.31369021]
[1734537018721,2.2992,217.52,217.37,20.31369021]
[1734537018916,2.42,217.54,217.37,20.31369021]
[1734537019325,2.2997,217.47,217.42,2.3002]
[1734537019524,4.7197,217.47,217.42,2.3002]
[1734537019922,2.42,217.47,217.37,2.42]
[1734537020426,2.42,217.47,217.34,2.9596]
[1734537021623,17.89369021,217.45,217.29,17.89369021]
[1734537021921,2.3008,217.37,217.31,2.3013]
[1734537022123,2.42,217.36,217.27,7.73521956]
[1734537022523,4.7209,217.36,217.27,7.73521956]
[1734537022829,2.42,217.36,217.27,7.73521956]
[1734537023020,2.42,217.36,217.27,1.4585]
[1734537023222,2.301,217.35,217.29,2.3015]
[1734537023525,2.42,217.36,217.27,1.4585]
[1734537023717,4.721,217.36,217.3,2.3015]
[1734537023918,2.42,217.36,217.22,2.42]
[1734537024319,2.3013,217.33,217.27,2.3018]
[1734537024728,5.4276,217.36,217.21,17.89369021]
[1734537024929,5.4276,217.36,217.24,5.43623886]
[1734537025720,2.3012,217.34,217.24,5.43623886]
[1734537026118,3.0076,217.36,217.32,2.3013]
[1734537026326,2.42,217.35,217.32,2.3013]
[1734537026628,2.42,217.35,217.24,5.43623886]
[1734537027434,1.5861,217.34,217.24,5.43623886]
[1734537027927,2.3013,217.32,217.26,2.3018]
[1734537028526,13.84,217.55,217.25,2.42]
[1734537028728,3.9703,217.42,217.25,2.42]
[1734537029028,3.9703,217.42,217.28,17.89369021]
[1734537029221,3.9703,217.42,217.29,3.063]
[1734537029424,2.42,217.43,217.32,17.89369021]
[1734537030229,17.89369021,217.48,217.32,17.89369021]
[1734537030532,2.42,217.47,217.42,2.3001]
[1734537030732,2.42,217.48,217.42,2.3001]
[1734537030932,2.42,217.48,217.37,2.42]
[1734537032033,2.42,217.48,217.37,8.01217832]
[1734537032228,2.2992,217.53,217.37,8.01217832]
[1734537032536,2.42,217.52,217.37,8.01217832]
[1734537032733,2.42,217.51,217.37,8.01217832]
[1734537033937,2.42,217.51,217.41,2.3003]
[1734537034126,2.42,217.51,217.37,8.01217832]
[1734537034729,4.7193,217.51,217.37,8.01217832]
[1734537034929,2.42,217.51,217.37,8.01217832]
[1734537035433,2.42,217.51,217.44,2.3]
[1734537035631,2.42,217.51,217.37,8.01217832]
[1734537035935,4.7193,217.51,217.44,2.3]
[1734537036439,2.42,217.51,217.37,8.01217832]
[1734537038037,4.6559,217.57,217.4,17.89369021]
[1734537038238,2.42,217.55,217.44,17.89369021]
[1734537038445,2.42,217.55,217.44,20.31369021]
[1734537039531,2.42,217.55,217.47,2.2997]
[1734537039737,2.42,217.55,217.44,20.31369021]
[1734537040238,1.5503,217.57,217.53,2.299]
[1734537040439,1.5503,217.57,217.44,20.31369021]
[1734537040636,3.9703,217.57,217.52,2.2991]
[1734537040943,2.4,217.58,217.44,20.31369021]
[1734537042044,2.4,217.58,217.54,2.2989]
[1734537042642,7.85310149,217.61,217.54,2.2989]
[1734537042844,2.4,217.59,217.54,2.2989]
[1734537043439,2.4,217.59,217.44,17.89369021]
[1734537043646,2.4,217.59,217.45,2.4]
[1734537044844,2.4,217.59,217.48,5.57179379]
[1734537045547,2.4,217.59,217.48,23.465484]
[1734537046250,2.4,217.62,217.51,11.16215047]
[1734537046445,2.4,217.63,217.52,2.9925]
[1734537046845,2.4,217.63,217.58,2.2984]
[1734537047454,2.4,217.63,217.59,2.2984]
[1734537048149,2.4,217.63,217.56,2.2986]
[1734537048350,2.4,217.63,217.52,2.9925]
[1734537048552,2.2982,217.62,217.52,2.9925]
[1734537049050,2.4,217.63,217.59,2.2983]
[1734537049250,2.4,217.63,217.52,2.9925]
[1734537049648,2.2981,217.62,217.56,2.2987]
[1734537050048,2.4,217.63,217.52,2.9925]
[1734537050752,11.16215047,217.62,217.48,16.73394426]
[1734537051250,11.16215047,217.62,217.53,2.299]
[1734537051446,11.16215047,217.62,217.48,16.73394426]
[1734537052060,11.16215047,217.59,217.48,5.57179379]
[1734537052251,2.4,217.58,217.48,5.57179379]
[1734537052450,2.2986,217.57,217.51,2.2993]
[1734537053254,2.2986,217.57,217.52,2.2991]
[1734537053852,2.2986,217.57,217.53,2.299]
[1734537054047,2.4,217.58,217.48,5.57179379]
[1734537054448,2.4,217.58,217.48,16.73394426]
[1734537054652,2.4,217.58,217.56,2.2987]
[1734537054951,11.16215047,217.62,217.48,16.73394426]
[1734537055150,2.4,217.61,217.51,11.16215047]
[1734537055351,2.4,217.6,217.51,11.16215047]
[1734537055555,2.4,217.62,217.52,1.4973]
[1734537056446,2.4,217.65,217.52,1.4973]
[1734537056652,2.4,217.65,217.53,1.4622]
[1734537056849,1.5072,217.66,217.55,17.85625831]
[1734537057056,19.30765831,217.73,217.55,17.85625831]
[1734537057249,2.4,217.72,217.55,17.85625831]
[1734537057453,1.4514,217.73,217.67,2.2975]
[1734537057654,2.4,217.72,217.67,2.2975]
[1734537058348,2.4,217.72,217.69,2.2973]
[1734537058552,1.4514,217.73,217.69,2.2973]
[1734537058748,3.8514,217.73,217.69,2.2973]
[1734537058953,1.5374,217.79,217.71,2.2971]
[1734537059152,2.4,217.75,217.63,17.85625831]
[1734537059350,2.4,217.75,217.64,5.5155]
[1734537059554,1.5374,217.79,217.73,2.2969]
[1734537059555,2.4,217.77,217.73,2.2969]
[1734537059956,2.4,217.77,217.74,2.2967]
[1734537060150,3.0088,217.82,217.71,17.85625831]
[1734537060357,5.55331631,217.84,217.71,17.85625831]
[1734537060557,2.4,217.86,217.79,2.2962]
[1734537060759,2.4,217.86,217.71,17.85625831]
[1734537061258,2.2959,217.83,217.71,17.85625831]
[1734537061465,17.85625831,217.88,217.71,17.85625831]
[1734537061664,2.4,217.87,217.71,17.85625831]
[1734537062658,2.4,217.87,217.68,5.54393944]
[1734537062860,17.85625831,217.84,217.68,5.54393944]
[1734537063161,2.2958,217.85,217.68,5.54393944]
[1734537063563,2.2959,217.83,217.76,2.2966]
[1734537063763,2.4,217.82,217.76,2.2966]
[1734537064064,2.4,217.82,217.68,5.54393944]
[1734537064261,2.4,217.82,217.77,2.2965]
[1734537064858,2.4,217.82,217.78,2.2964]
[1734537065263,23.25016775,217.88,217.78,2.2964]
[1734537065461,2.4,217.87,217.78,2.2964]
[1734537065661,2.2958,217.84,217.79,2.2963]
[1734537066768,17.85625831,217.88,217.71,20.25625831]
[1734537066962,1.5558,217.9,217.71,20.25625831]
[1734537067162,2.4,217.89,217.71,20.25625831]
[1734537067367,2.4,217.88,217.83,2.2959]
[1734537067565,2.4,217.88,217.71,20.25625831]
[1734537067771,2.4,217.88,217.85,2.2957]
[1734537068066,2.4,217.88,217.75,17.85625831]
[1734537068366,2.4,217.88,217.76,2.9572]
[1734537068966,2.4,217.88,217.85,2.2957]
[1734537069863,23.47600975,217.96,217.78,17.85625831]
[1734537070068,2.4,217.93,217.78,17.85625831]
[1734537070366,2.4,217.94,217.82,17.85625831]
[1734537070568,2.4,217.96,217.83,2.4]
[1734537071466,2.4,217.96,217.82,17.85625831]
[1734537071666,2.4,217.96,217.88,2.2954]
[1734537071858,2.4,217.96,217.82,20.25625831]
[1734537071859,2.4,217.96,217.84,5.4455114]
[1734537072059,2.4,217.96,217.91,2.295]
[1734537072267,2.4,217.96,217.84,5.4455114]
[1734537072467,4.6945,217.96,217.85,1.5015]
[1734537072670,2.4,217.96,217.85,1.5015]
[1734537073165,4.6946,217.96,217.85,1.5015]
[1734537073366,2.4,217.95,217.85,1.5015]
[1734537073671,2.2947,217.94,217.85,1.5015]
[1734537073872,2.4,217.95,217.9,2.2952]
[1734537074175,2.4,217.95,217.85,1.5015]
[1734537075171,2.4,217.95,217.82,2.4]
[1734537075565,2.2951,217.91,217.85,2.2957]
[1734537075864,1.5844,217.99,217.78,21.82415831]
[1734537075865,2.38,217.9,217.78,21.82415831]
[1734537076065,2.38,217.89,217.78,21.82415831]